[Event "ESTCC 50 2019"]
[Site "Mali Losinj"]
[Date "2019.09.26"]
[Round "9.14"]
[White "Priehoda, Vitezslav"]
[Black "Lewis, Andrew P"]
[Result "1-0"]
[ECO "E99"]
[WhiteElo "2352"]
[BlackElo "2294"]
[Annotator "NA"]
[PlyCount "54"]
[EventDate "2019.09.18"]
[EventType "team-tourn"]
[EventCountry "CRO"]
[SourceTitle "playchess.com"]
[Source "ChessBase"]
[SourceQuality "1"]
[WhiteTeam "Czech Republic"]
[BlackTeam "England"]
[WhiteTeamCountry "CZE"]
[BlackTeamCountry "ENG"]
[TimeControl "40/5400+30:1800+30"]

1. d4 {[%emt 0:00:30]} Nf6 {[%emt 0:00:30]} 2. c4 {[%emt 0:00:00]} g6 {[%emt 0:00:30]} 3. Nc3 {[%emt 0:00:00]} Bg7 {[%emt 0:00:00]} 4. e4 {[%emt 0:00:00]} d6 {[%emt 0:00:00]} 5. Nf3 {[%emt 0:00:00]} O-O {[%emt 0:00:30]} 6. Be2 {[%emt 0:00:00]} e5 {[%emt 0:00:30]} 7. O-O {[%emt 0:00:00]} Nc6 {[%emt 0:00:30]} 8. d5 {[%emt 0:00:30]} Ne7 {[%emt 0:00:30]} 9. Ne1 {[%emt 0:00:00]} Nd7 {[%emt 0:01:30]} 10. Be3 {[%emt 0:00:00]} f5 {[%emt 0:00:30]} 11. f3 {[%emt 0:00:30]} f4 {[%emt 0:00:00]} 12. Bf2 {[%emt 0:00:00]} g5 {[%emt 0:00:00]} 13. a4 {[%emt 0:00:00]} a5 {[%emt 0:08:30]} 14. Nd3 {[%emt 0:00:30]} b6 {[%emt 0:00:30]} 15. b4 {[%emt 0:00:30]} axb4 {[%emt 0:04:30]} 16. Nxb4 {[%emt 0:01:30]} Nf6 {[%emt 0:08:30]} 17. Nd3 {[%emt 0:04:30]} Rf7 {[%emt 0:03:30]} 18. Be1 {[%emt 0:13:30]} Bf8 {[%emt 0:12:30]} 19. Nb5 {[%emt 0:37:30]} Rg7 {[%emt 0:10:30]} 20. a5 {[%emt 0:01:30]} g4 {[%emt 0:28:00]} 21. axb6 {[%emt 0:00:30]} Rxa1 {[%emt 0:00:07]} 22. bxc7 {[%emt 0:01:30]} Qe8 {[%emt 0:00:41]} 23. Qxa1 {[%emt 0:00:30]} g3 {[%emt 0:00:05]} 24. hxg3 {[%emt 0:03:30]} fxg3 {[%emt 0:00:11]} 25. f4 {[%emt 0:00:30]} Nxe4 {[%emt 0:07:00]} 26. fxe5 {[%emt 0:09:30]} Nxd5 {[%emt 0:01:24]} 27. Qd4 {[%emt 0:08:24]} Qd8 {[%emt 0:05:10]} 1-0

[Event "ESTCC 50 2019"]
[Site "Mali Losinj"]
[Date "2019.09.26"]
[Round "9.15"]
[White "Nelson, Jonathan P"]
[Black "Vokac, Marek"]
[Result "0-1"]
[ECO "A47"]
[WhiteElo "2183"]
[BlackElo "2332"]
[Annotator "NA"]
[PlyCount "76"]
[EventDate "2019.09.18"]
[EventType "team-tourn"]
[EventCountry "CRO"]
[SourceTitle "playchess.com"]
[Source "ChessBase"]
[SourceQuality "1"]
[WhiteTeam "England"]
[BlackTeam "Czech Republic"]
[WhiteTeamCountry "ENG"]
[BlackTeamCountry "CZE"]
[TimeControl "40/5400+30:1800+30"]

1. d4 {[%emt 0:00:30]} Nf6 {[%emt 0:00:30]} 2. Nf3 {[%emt 0:00:30]} e6 {[%emt 0:00:30]} 3. Bg5 {[%emt 0:00:00]} c5 {[%emt 0:00:30]} 4. e3 {[%emt 0:00:00]} b6 {[%emt 0:00:30]} 5. Bd3 {[%emt 0:00:30]} Bb7 {[%emt 0:00:00]} 6. Nbd2 {[%emt 0:01:30]} Be7 {[%emt 0:01:00]} 7. O-O {[%emt 0:03:30]} O-O {[%emt 0:00:30]} 8. c4 {[%emt 0:04:30]} cxd4 {[%emt 0:02:30]} 9. exd4 {[%emt 0:01:30]} d6 {[%emt 0:00:00]} 10. Re1 {[%emt 0:02:30]} Nbd7 {[%emt 0:00:00]} 11. Nf1 {[%emt 0:02:30]} Re8 {[%emt 0:05:30]} 12. Rc1 {[%emt 0:04:30]} Rc8 {[%emt 0:09:30]} 13. Ng3 {[%emt 0:08:30]} d5 {[%emt 0:13:30]} 14. b3 {[%emt 0:06:30]} dxc4 {[%emt 0:07:30]} 15. bxc4 {[%emt 0:02:30]} b5 {[%emt 0:00:30]} 16. c5 {[%emt 0:19:30]} a6 {[%emt 0:03:30]} 17. a4 {[%emt 0:08:30]} bxa4 {[%emt 0:01:30]} 18. Ra1 {[%emt 0:00:30]} Bc6 {[%emt 0:02:30]} 19. Bxa6 {[%emt 0:02:30]} Ra8 {[%emt 0:00:30]} 20. Bc4 {[%emt 0:00:00]} Qa5 {[%emt 0:07:30]} 21. Bd2 {[%emt 0:03:00]} Qc7 {[%emt 0:00:30]} 22. Ng5 {[%emt 0:00:30]} Nf8 {[%emt 0:08:30]} 23. Ne2 {[%emt 0:14:02]} Nd5 {[%emt 0:05:30]} 24. Ra3 {[%emt 0:05:35]} Ng6 {[%emt 0:02:30]} 25. Bxd5 {[%emt 0:03:08]} Bxd5 {[%emt 0:00:00]} 26. Rxa4 {[%emt 0:00:29]} Bxg2 {[%emt 0:01:00]} 27. Rxa8 {[%emt 0:00:15]} Bxa8 {[%emt 0:00:00]} 28. Nc3 {[%emt 0:04:11]} Rd8 {[%emt 0:03:00]} 29. Qg4 {[%emt 0:01:49]} Qc6 {[%emt 0:10:36]} 30. d5 {[%emt 0:00:33]} Rxd5 {[%emt 0:01:26]} 31. Nxd5 {[%emt 0:00:22]} Qxd5 {[%emt 0:00:02]} 32. Qe4 {[%emt 0:00:20]} h6 {[%emt 0:03:15]} 33. Qxd5 {[%emt 0:00:27]} Bxd5 {[%emt 0:00:03]} 34. Nh3 {[%emt 0:00:55]} Nh4 {[%emt 0:00:24]} 35. Rd1 {[%emt 0:00:31]} Nf3+ {[%emt 0:01:12]} 36. Kf1 {[%emt 0:00:02]} Nxh2+ {[%emt 0:00:26]} 37. Ke1 {[%emt 0:00:41]} Nf3+ {[%emt 0:04:39]} 38. Ke2 {[%emt 0:00:35]} g5 {[%emt 0:00:00]} 0-1

[Event "ESTCC 50 2019"]
[Site "Mali Losinj"]
[Date "2019.09.26"]
[Round "9.16"]
[White "Konopka, Michal"]
[Black "Ledger, Stephen C"]
[Result "1-0"]
[ECO "D11"]
[WhiteElo "2351"]
[BlackElo "2000"]
[Annotator "NA"]
[PlyCount "45"]
[EventDate "2019.09.18"]
[EventType "team-tourn"]
[EventCountry "CRO"]
[SourceTitle "playchess.com"]
[Source "ChessBase"]
[SourceQuality "1"]
[WhiteTeam "Czech Republic"]
[BlackTeam "England"]
[WhiteTeamCountry "CZE"]
[BlackTeamCountry "ENG"]
[TimeControl "40/5400+30:1800+30"]

1. Nf3 {[%emt 0:00:30]} d5 {[%emt 0:00:30]} 2. d4 {[%emt 0:00:00]} Bf5 {[%emt 0:00:30]} 3. c4 {[%emt 0:03:00]} e6 {[%emt 0:00:30]} 4. Nc3 {[%emt 0:01:30]} c6 {[%emt 0:01:30]} 5. Qb3 {[%emt 0:10:30]} Qb6 {[%emt 0:01:30]} 6. c5 {[%emt 0:01:30]} Qxb3 {[%emt 0:00:30]} 7. axb3 {[%emt 0:00:00]} Na6 {[%emt 0:01:30]} 8. e4 {[%emt 0:00:00]} dxe4 {[%emt 0:30:30]} 9. Bxa6 {[%emt 0:00:30]} bxa6 {[%emt 0:00:30]} 10. Ne5 {[%emt 0:01:30]} Ne7 {[%emt 0:06:30]} 11. Rxa6 {[%emt 0:11:30]} f6 {[%emt 0:00:30]} 12. Nc4 {[%emt 0:08:30]} Nc8 {[%emt 0:10:30]} 13. Rxc6 {[%emt 0:06:30]} Kd7 {[%emt 0:04:30]} 14. Na5 {[%emt 0:07:30]} Be7 {[%emt 0:04:30]} 15. Bf4 {[%emt 0:02:30]} Bd8 {[%emt 0:03:30]} 16. Ra6 {[%emt 0:00:30]} Bxa5 {[%emt 0:01:30]} 17. Rxa5 {[%emt 0:00:30]} Ne7 {[%emt 0:00:30]} 18. O-O {[%emt 0:02:30]} Nc6 {[%emt 0:02:30]} 19. Ra6 {[%emt 0:05:30]} e5 {[%emt 0:04:30]} 20. dxe5 {[%emt 0:05:30]} fxe5 {[%emt 0:01:30]} 21. Bg3 {[%emt 0:00:30]} Rab8 {[%emt 0:02:30]} 22. Rd1+ {[%emt 0:01:30]} Kc7 {[%emt 0:00:30]} 23. Rd6 {[%emt 0:06:30]} 1-0

[Event "ESTCC 50 2019"]
[Site "Mali Losinj"]
[Date "2019.09.26"]
[Round "9.17"]
[White "Druckenthaner, Andreas"]
[Black "Burchardt, Brigitte"]
[Result "1/2-1/2"]
[ECO "B25"]
[WhiteElo "2283"]
[BlackElo "2092"]
[Annotator "NA"]
[PlyCount "95"]
[EventDate "2019.09.18"]
[EventType "team-tourn"]
[EventCountry "CRO"]
[SourceTitle "playchess.com"]
[Source "ChessBase"]
[SourceQuality "1"]
[WhiteTeam "Austria"]
[BlackTeam "Germany"]
[WhiteTeamCountry "AUT"]
[BlackTeamCountry "GER"]
[TimeControl "40/5400+30:1800+30"]

1. e4 {[%emt 0:00:30]} c5 {[%emt 0:00:30]} 2. Nc3 {[%emt 0:00:00]} Nc6 {[%emt 0:00:30]} 3. g3 {[%emt 0:00:00]} g6 {[%emt 0:00:30]} 4. Bg2 {[%emt 0:00:30]} Bg7 {[%emt 0:00:00]} 5. d3 {[%emt 0:00:00]} d6 {[%emt 0:00:00]} 6. Nh3 {[%emt 0:00:00]} Nf6 {[%emt 0:07:30]} 7. O-O {[%emt 0:00:30]} O-O {[%emt 0:04:30]} 8. f3 {[%emt 0:08:30]} Rb8 {[%emt 0:04:30]} 9. Be3 {[%emt 0:03:30]} Bd7 {[%emt 0:13:30]} 10. Qd2 {[%emt 0:01:30]} Qc8 {[%emt 0:04:30]} 11. Nf2 {[%emt 0:04:30]} Re8 {[%emt 0:10:30]} 12. Ne2 {[%emt 0:05:30]} b6 {[%emt 0:07:30]} 13. d4 {[%emt 0:04:30]} e5 {[%emt 0:15:30]} 14. c3 {[%emt 0:08:30]} Rd8 {[%emt 0:07:30]} 15. g4 {[%emt 0:06:30]} Qc7 {[%emt 0:12:03]} 16. Rac1 {[%emt 0:04:30]} Ne7 {[%emt 0:00:05]} 17. Ng3 {[%emt 0:02:30]} Bb5 {[%emt 0:02:25]} 18. Rfd1 {[%emt 0:17:30]} d5 {[%emt 0:00:02]} 19. g5 {[%emt 0:01:30]} Ne8 {[%emt 0:00:10]} 20. Qe1 {[%emt 0:00:30]} dxe4 {[%emt 0:00:37]} 21. fxe4 {[%emt 0:02:30]} Nd6 {[%emt 0:00:03]} 22. b3 {[%emt 0:06:30]} c4 {[%emt 0:01:21]} 23. Ng4 {[%emt 0:01:30]} Ne8 {[%emt 0:00:46]} 24. Qf2 {[%emt 0:00:30]} Nc6 {[%emt 0:01:16]} 25. Bf1 {[%emt 0:04:24]} Ba6 {[%emt 0:00:34]} 26. d5 {[%emt 0:02:29]} Na5 {[%emt 0:00:03]} 27. b4 {[%emt 0:01:14]} Nb7 {[%emt 0:00:01]} 28. Be2 {[%emt 0:02:52]} Nbd6 {[%emt 0:00:03]} 29. h4 {[%emt 0:00:34]} Bc8 {[%emt 0:00:36]} 30. Nf6+ {[%emt 0:00:48]} Kh8 {[%emt 0:00:31]} 31. h5 {[%emt 0:00:47]} Qe7 {[%emt 0:02:01]} 32. Rf1 {[%emt 0:00:24]} Rb7 {[%emt 0:00:42]} 33. Qf3 {[%emt 0:02:36]} Qf8 {[%emt 0:02:55]} 34. Rf2 {[%emt 0:01:35]} Nxf6 {[%emt 0:00:07]} 35. gxf6 {[%emt 0:00:10]} Bh6 {[%emt 0:00:09]} 36. Rh2 {[%emt 0:01:05]} Bxe3+ {[%emt 0:00:25]} 37. Qxe3 {[%emt 0:00:07]} Qg8 {[%emt 0:01:58]} 38. Qg5 {[%emt 0:04:32]} Re8 {[%emt 0:00:04]} 39. Kf2 {[%emt 0:00:47]} gxh5 {[%emt 0:00:53]} 40. Qxg8+ {[%emt 0:01:29]} Rxg8 {[%emt 0:00:00]} 41. Rxh5 {[%emt 0:02:37]} Rg6 {[%emt 0:04:40]} 42. Rch1 {[%emt 0:11:10]} Rxf6+ {[%emt 0:01:30]} 43. Bf3 {[%emt 0:02:01]} Kg8 {[%emt 0:02:30]} 44. Rxh7 {[%emt 0:00:32]} Kf8 {[%emt 0:01:30]} 45. Rh8+ {[%emt 0:03:07]} Ke7 {[%emt 0:00:30]} 46. R1h6 {[%emt 0:01:30]} Rxh6 {[%emt 0:04:30]} 47. Rxh6 {[%emt 0:00:06]} a5 {[%emt 0:00:30]} 48. a4 {[%emt 0:01:58]} 1/2-1/2

[Event "ESTCC 50 2019"]
[Site "Mali Losinj"]
[Date "2019.09.26"]
[Round "9.18"]
[White "Wagner-Michel, Annett"]
[Black "Opl, Klaus"]
[Result "0-1"]
[ECO "C45"]
[WhiteElo "2055"]
[BlackElo "2207"]
[Annotator "NA"]
[PlyCount "68"]
[EventDate "2019.09.18"]
[EventType "team-tourn"]
[EventCountry "CRO"]
[SourceTitle "playchess.com"]
[Source "ChessBase"]
[SourceQuality "1"]
[WhiteTeam "Germany"]
[BlackTeam "Austria"]
[WhiteTeamCountry "GER"]
[BlackTeamCountry "AUT"]
[TimeControl "40/5400+30:1800+30"]

1. e4 {[%emt 0:00:30]} e5 {[%emt 0:00:30]} 2. Nf3 {[%emt 0:00:00]} Nc6 {[%emt 0:00:30]} 3. d4 {[%emt 0:00:00]} exd4 {[%emt 0:00:00]} 4. Nxd4 {[%emt 0:00:00]} Bc5 {[%emt 0:00:00]} 5. Nb3 {[%emt 0:01:00]} Bb6 {[%emt 0:00:30]} 6. Nc3 {[%emt 0:00:30]} Nge7 {[%emt 0:00:30]} 7. a4 {[%emt 0:00:30]} a6 {[%emt 0:00:30]} 8. Be2 {[%emt 0:01:30]} O-O {[%emt 0:00:30]} 9. O-O {[%emt 0:00:30]} d6 {[%emt 0:00:30]} 10. Bg5 {[%emt 0:04:30]} f6 {[%emt 0:03:30]} 11. Bf4 {[%emt 0:07:30]} f5 {[%emt 0:03:30]} 12. Qd2 {[%emt 0:12:30]} fxe4 {[%emt 0:04:30]} 13. Nxe4 {[%emt 0:01:30]} Bf5 {[%emt 0:00:30]} 14. Bf3 {[%emt 0:02:30]} Ng6 {[%emt 0:04:30]} 15. Bg5 {[%emt 0:10:30]} Qd7 {[%emt 0:00:30]} 16. Ng3 {[%emt 0:00:30]} Be6 {[%emt 0:03:30]} 17. a5 {[%emt 0:07:30]} Ba7 {[%emt 0:02:30]} 18. Bd5 {[%emt 0:04:30]} Bxd5 {[%emt 0:00:30]} 19. Qxd5+ {[%emt 0:00:30]} Kh8 {[%emt 0:03:30]} 20. Rae1 {[%emt 0:02:30]} Rae8 {[%emt 0:01:30]} 21. Bd2 {[%emt 0:08:30]} Rxe1 {[%emt 0:04:30]} 22. Bxe1 {[%emt 0:00:00]} Nf4 {[%emt 0:01:30]} 23. Qd1 {[%emt 0:04:00]} Qe6 {[%emt 0:06:30]} 24. Kh1 {[%emt 0:03:30]} Nd5 {[%emt 0:14:30]} 25. c3 {[%emt 0:04:30]} Nf4 {[%emt 0:01:30]} 26. f3 {[%emt 0:04:49]} Qe5 {[%emt 0:07:30]} 27. Bf2 {[%emt 0:10:10]} Bxf2 {[%emt 0:01:30]} 28. Rxf2 {[%emt 0:00:02]} Nxa5 {[%emt 0:00:30]} 29. Nxa5 {[%emt 0:00:52]} Qxa5 {[%emt 0:00:30]} 30. Rf1 {[%emt 0:03:22]} Qb5 {[%emt 0:01:30]} 31. Rf2 {[%emt 0:03:09]} Qe5 {[%emt 0:03:30]} 32. Ne4 {[%emt 0:00:38]} d5 {[%emt 0:01:30]} 33. Nc5 {[%emt 0:00:11]} Qe3 {[%emt 0:00:30]} 34. Nd7 {[%emt 0:01:10]} Qxf2 {[%emt 0:00:30]} 0-1

[Event "ESTCC 50 2019"]
[Site "Mali Losinj"]
[Date "2019.09.26"]
[Round "9.19"]
[White "Watzka, Horst"]
[Black "Kierzek, Mira"]
[Result "1/2-1/2"]
[ECO "C14"]
[WhiteElo "2187"]
[BlackElo "2015"]
[Annotator "NA"]
[PlyCount "64"]
[EventDate "2019.09.18"]
[EventType "team-tourn"]
[EventCountry "CRO"]
[SourceTitle "playchess.com"]
[Source "ChessBase"]
[SourceQuality "1"]
[WhiteTeam "Austria"]
[BlackTeam "Germany"]
[WhiteTeamCountry "AUT"]
[BlackTeamCountry "GER"]
[TimeControl "40/5400+30:1800+30"]

1. e4 {[%emt 0:00:30]} e6 {[%emt 0:00:30]} 2. d4 {[%emt 0:00:30]} d5 {[%emt 0:00:00]} 3. Nc3 {[%emt 0:02:30]} Nf6 {[%emt 0:05:00]} 4. Bg5 {[%emt 0:03:30]} Be7 {[%emt 0:00:00]} 5. e5 {[%emt 0:04:30]} Nfd7 {[%emt 0:00:00]} 6. h4 {[%emt 0:00:30]} a6 {[%emt 0:03:30]} 7. Nf3 {[%emt 0:02:30]} h6 {[%emt 0:01:30]} 8. Bxe7 {[%emt 0:00:30]} Qxe7 {[%emt 0:00:30]} 9. Qd2 {[%emt 0:01:30]} c5 {[%emt 0:01:30]} 10. Ne2 {[%emt 0:02:30]} Nc6 {[%emt 0:00:30]} 11. c3 {[%emt 0:00:30]} cxd4 {[%emt 0:11:30]} 12. cxd4 {[%emt 0:00:00]} Qb4 {[%emt 0:00:30]} 13. Qxb4 {[%emt 0:06:00]} Nxb4 {[%emt 0:00:30]} 14. Kd2 {[%emt 0:00:30]} O-O {[%emt 0:03:30]} 15. Nf4 {[%emt 0:01:30]} Nb6 {[%emt 0:04:30]} 16. b3 {[%emt 0:00:30]} Bd7 {[%emt 0:00:30]} 17. Bd3 {[%emt 0:01:30]} Rac8 {[%emt 0:03:30]} 18. Rhc1 {[%emt 0:01:30]} Rfe8 {[%emt 0:11:30]} 19. g4 {[%emt 0:05:30]} Rxc1 {[%emt 0:05:30]} 20. Kxc1 {[%emt 0:00:30]} Rc8+ {[%emt 0:08:30]} 21. Kb2 {[%emt 0:01:30]} Na8 {[%emt 0:01:30]} 22. a3 {[%emt 0:01:30]} Nxd3+ {[%emt 0:02:30]} 23. Nxd3 {[%emt 0:00:30]} b6 {[%emt 0:00:30]} 24. Rg1 {[%emt 0:05:30]} Kh7 {[%emt 0:04:30]} 25. g5 {[%emt 0:02:30]} Nc7 {[%emt 0:03:30]} 26. Nf4 {[%emt 0:00:30]} Ne8 {[%emt 0:04:30]} 27. h5 {[%emt 0:03:30]} Rc7 {[%emt 0:05:07]} 28. Rg3 {[%emt 0:02:30]} a5 {[%emt 0:00:47]} 29. a4 {[%emt 0:03:30]} Bc8 {[%emt 0:00:43]} 30. Rg1 {[%emt 0:02:30]} Re7 {[%emt 0:00:43]} 31. Kc3 {[%emt 0:03:30]} Rc7+ {[%emt 0:04:31]} 32. Kd2 {[%emt 0:00:30]} Re7 {[%emt 0:00:48]} 1/2-1/2

[Event "ESTCC 50 2019"]
[Site "Mali Losinj"]
[Date "2019.09.26"]
[Round "9.20"]
[White "Leib, Britta"]
[Black "Ernst, Michael"]
[Result "1/2-1/2"]
[ECO "C10"]
[WhiteElo "1883"]
[BlackElo "2199"]
[Annotator "NA"]
[PlyCount "59"]
[EventDate "2019.09.18"]
[EventType "team-tourn"]
[EventCountry "CRO"]
[SourceTitle "playchess.com"]
[Source "ChessBase"]
[SourceQuality "1"]
[WhiteTeam "Germany"]
[BlackTeam "Austria"]
[WhiteTeamCountry "GER"]
[BlackTeamCountry "AUT"]
[TimeControl "40/5400+30:1800+30"]

1. e4 {[%emt 0:00:30]} e6 {[%emt 0:00:30]} 2. d4 {[%emt 0:00:00]} d5 {[%emt 0:00:00]} 3. Nd2 {[%emt 0:00:00]} dxe4 {[%emt 0:00:00]} 4. Nxe4 {[%emt 0:00:30]} Bd7 {[%emt 0:00:00]} 5. Nf3 {[%emt 0:00:30]} Bc6 {[%emt 0:00:00]} 6. Bd3 {[%emt 0:01:30]} Nd7 {[%emt 0:00:00]} 7. O-O {[%emt 0:01:30]} Ngf6 {[%emt 0:02:00]} 8. Bg5 {[%emt 0:11:30]} Be7 {[%emt 0:00:30]} 9. Nxf6+ {[%emt 0:01:30]} Bxf6 {[%emt 0:00:30]} 10. Be3 {[%emt 0:02:30]} O-O {[%emt 0:00:30]} 11. c3 {[%emt 0:04:30]} h6 {[%emt 0:12:30]} 12. Qe2 {[%emt 0:06:30]} e5 {[%emt 0:01:30]} 13. dxe5 {[%emt 0:03:30]} Bxf3 {[%emt 0:01:30]} 14. gxf3 {[%emt 0:14:30]} Bxe5 {[%emt 0:05:30]} 15. f4 {[%emt 0:08:30]} Bd6 {[%emt 0:02:30]} 16. Qf3 {[%emt 0:07:30]} c6 {[%emt 0:09:30]} 17. Rad1 {[%emt 0:02:30]} Qf6 {[%emt 0:00:30]} 18. Qg4 {[%emt 0:01:30]} Qe7 {[%emt 0:05:30]} 19. Bd4 {[%emt 0:06:30]} Nf6 {[%emt 0:03:30]} 20. Qf5 {[%emt 0:00:30]} Rfe8 {[%emt 0:07:30]} 21. Rd2 {[%emt 0:17:31]} Qe6 {[%emt 0:23:30]} 22. Bxf6 {[%emt 0:01:43]} Qxf6 {[%emt 0:01:30]} 23. Qxf6 {[%emt 0:02:27]} gxf6 {[%emt 0:00:30]} 24. Bc4 {[%emt 0:00:03]} Rad8 {[%emt 0:02:30]} 25. Rfd1 {[%emt 0:01:08]} Bc7 {[%emt 0:00:30]} 26. Rxd8 {[%emt 0:00:59]} Rxd8 {[%emt 0:00:30]} 27. Rxd8+ {[%emt 0:02:20]} Bxd8 {[%emt 0:00:00]} 28. Kg2 {[%emt 0:00:02]} Kg7 {[%emt 0:01:00]} 29. Bd3 {[%emt 0:00:13]} Kf8 {[%emt 0:01:03]} 30. Kf3 {[%emt 0:00:50]} 1/2-1/2

[Event "ESTCC 50 2019"]
[Site "Mali Losinj"]
[Date "2019.09.26"]
[Round "9.21"]
[White "Sulc, Damir"]
[Black "Jackson, Sheila"]
[Result "1/2-1/2"]
[ECO "C92"]
[WhiteElo "2207"]
[BlackElo "2046"]
[Annotator "NA"]
[PlyCount "90"]
[EventDate "2019.09.18"]
[EventType "team-tourn"]
[EventCountry "CRO"]
[SourceTitle "playchess.com"]
[Source "ChessBase"]
[SourceQuality "1"]
[WhiteTeam "Croatia"]
[BlackTeam "England"]
[WhiteTeamCountry "CRO"]
[BlackTeamCountry "ENG"]
[TimeControl "40/5400+30:1800+30"]

1. e4 {[%emt 0:00:30]} e5 {[%emt 0:00:30]} 2. Nf3 {[%emt 0:00:00]} Nc6 {[%emt 0:00:00]} 3. Bb5 {[%emt 0:00:00]} a6 {[%emt 0:00:00]} 4. Ba4 {[%emt 0:00:30]} Nf6 {[%emt 0:00:00]} 5. O-O {[%emt 0:00:00]} Be7 {[%emt 0:00:00]} 6. Re1 {[%emt 0:01:00]} b5 {[%emt 0:00:30]} 7. Bb3 {[%emt 0:00:30]} d6 {[%emt 0:00:00]} 8. c3 {[%emt 0:00:30]} O-O {[%emt 0:00:00]} 9. h3 {[%emt 0:00:00]} Nd7 {[%emt 0:00:30]} 10. d4 {[%emt 0:15:00]} Bf6 {[%emt 0:00:00]} 11. Be3 {[%emt 0:04:30]} Bb7 {[%emt 0:02:00]} 12. d5 {[%emt 0:04:30]} Na5 {[%emt 0:00:30]} 13. Bc2 {[%emt 0:01:30]} Nc4 {[%emt 0:01:30]} 14. Bc1 {[%emt 0:00:30]} h6 {[%emt 0:00:30]} 15. Nbd2 {[%emt 0:01:30]} Nxd2 {[%emt 0:00:30]} 16. Bxd2 {[%emt 0:01:30]} Nb6 {[%emt 0:05:30]} 17. Qe2 {[%emt 0:01:30]} Nc4 {[%emt 0:11:30]} 18. Bc1 {[%emt 0:00:30]} c6 {[%emt 0:00:30]} 19. dxc6 {[%emt 0:08:30]} Bxc6 {[%emt 0:00:30]} 20. b3 {[%emt 0:08:30]} Nb6 {[%emt 0:00:30]} 21. Ba3 {[%emt 0:00:30]} Qc7 {[%emt 0:00:30]} 22. Rac1 {[%emt 0:00:30]} Rfd8 {[%emt 0:01:30]} 23. Bd3 {[%emt 0:07:30]} Qb7 {[%emt 0:03:30]} 24. Bb4 {[%emt 0:06:30]} a5 {[%emt 0:05:30]} 25. Ba3 {[%emt 0:00:30]} Nc8 {[%emt 0:03:30]} 26. c4 {[%emt 0:02:30]} b4 {[%emt 0:00:30]} 27. Bb2 {[%emt 0:00:30]} Ne7 {[%emt 0:03:30]} 28. c5 {[%emt 0:01:30]} Ng6 {[%emt 0:01:30]} 29. g3 {[%emt 0:00:30]} Be7 {[%emt 0:14:30]} 30. h4 {[%emt 0:05:30]} dxc5 {[%emt 0:14:30]} 31. h5 {[%emt 0:00:30]} Nf8 {[%emt 0:00:30]} 32. Nxe5 {[%emt 0:01:30]} Be8 {[%emt 0:01:30]} 33. Bc4 {[%emt 0:07:30]} Qc8 {[%emt 0:00:00]} 34. Bd5 {[%emt 0:05:08]} Ra7 {[%emt 0:01:00]} 35. Qc4 {[%emt 0:01:11]} Bd6 {[%emt 0:04:30]} 36. Kg2 {[%emt 0:03:30]} Ne6 {[%emt 0:02:30]} 37. f4 {[%emt 0:03:51]} a4 {[%emt 0:03:30]} 38. Rcd1 {[%emt 0:02:07]} axb3 {[%emt 0:01:30]} 39. axb3 {[%emt 0:00:38]} Ra2 {[%emt 0:00:37]} 40. Re2 {[%emt 0:02:03]} Nxf4+ {[%emt 0:13:41]} 41. gxf4 {[%emt 0:30:11]} Bxe5 {[%emt 0:30:19]} 42. Bxe5 {[%emt 0:00:19]} Qg4+ {[%emt 0:00:50]} 43. Kf2 {[%emt 0:01:10]} Qh4+ {[%emt 0:00:44]} 44. Kg2 {[%emt 0:00:10]} Qg4+ {[%emt 0:00:06]} 45. Kf2 {[%emt 0:00:12]} Qh4+ {[%emt 0:00:05]} 1/2-1/2

[Event "ESTCC 50 2019"]
[Site "Mali Losinj"]
[Date "2019.09.26"]
[Round "9.22"]
[White "Mashayekh, Majid"]
[Black "Dusper, Hrvoje"]
[Result "1-0"]
[ECO "E62"]
[WhiteElo "1875"]
[BlackElo "2221"]
[Annotator "NA"]
[PlyCount "111"]
[EventDate "2019.09.18"]
[EventType "team-tourn"]
[EventCountry "CRO"]
[SourceTitle "playchess.com"]
[Source "ChessBase"]
[SourceQuality "1"]
[WhiteTeam "England"]
[BlackTeam "Croatia"]
[WhiteTeamCountry "ENG"]
[BlackTeamCountry "CRO"]
[TimeControl "40/5400+30:1800+30"]

1. Nf3 {[%emt 0:00:30]} Nf6 {[%emt 0:00:30]} 2. d4 {[%emt 0:00:00]} g6 {[%emt 0:00:30]} 3. g3 {[%emt 0:00:00]} Bg7 {[%emt 0:00:30]} 4. Bg2 {[%emt 0:00:30]} O-O {[%emt 0:00:30]} 5. O-O {[%emt 0:00:30]} d6 {[%emt 0:00:30]} 6. c4 {[%emt 0:00:30]} c6 {[%emt 0:00:30]} 7. Nc3 {[%emt 0:00:30]} Bf5 {[%emt 0:00:30]} 8. Nh4 {[%emt 0:01:30]} Bg4 {[%emt 0:02:30]} 9. Qb3 {[%emt 0:02:30]} Qc7 {[%emt 0:07:30]} 10. Re1 {[%emt 0:05:30]} e5 {[%emt 0:03:30]} 11. d5 {[%emt 0:03:30]} Na6 {[%emt 0:10:30]} 12. e4 {[%emt 0:07:30]} Nc5 {[%emt 0:04:30]} 13. Qc2 {[%emt 0:00:30]} cxd5 {[%emt 0:01:30]} 14. cxd5 {[%emt 0:05:30]} Rac8 {[%emt 0:02:30]} 15. Be3 {[%emt 0:06:30]} Bd7 {[%emt 0:01:30]} 16. f3 {[%emt 0:03:30]} b5 {[%emt 0:05:30]} 17. Bf1 {[%emt 0:03:30]} b4 {[%emt 0:02:30]} 18. Nd1 {[%emt 0:03:30]} Qa5 {[%emt 0:05:30]} 19. Qf2 {[%emt 0:12:30]} Nb3 {[%emt 0:02:30]} 20. axb3 {[%emt 0:04:30]} Qxa1 {[%emt 0:00:30]} 21. Bc4 {[%emt 0:01:30]} Qa5 {[%emt 0:01:30]} 22. Bxa7 {[%emt 0:00:30]} Bb5 {[%emt 0:00:30]} 23. Ne3 {[%emt 0:08:30]} Nd7 {[%emt 0:11:30]} 24. Bxb5 {[%emt 0:01:30]} Qxb5 {[%emt 0:00:30]} 25. Nc4 {[%emt 0:00:30]} Qa6 {[%emt 0:00:30]} 26. Be3 {[%emt 0:02:30]} f5 {[%emt 0:00:30]} 27. exf5 {[%emt 0:04:30]} gxf5 {[%emt 0:00:30]} 28. f4 {[%emt 0:01:30]} e4 {[%emt 0:06:30]} 29. Qe2 {[%emt 0:04:05]} Nc5 {[%emt 0:03:30]} 30. Bxc5 {[%emt 0:02:34]} Rxc5 {[%emt 0:03:30]} 31. Rd1 {[%emt 0:02:46]} Ra5 {[%emt 0:05:20]} 32. Rd2 {[%emt 0:01:44]} Ra1+ {[%emt 0:03:34]} 33. Kg2 {[%emt 0:00:33]} Qa7 {[%emt 0:06:14]} 34. Nxd6 {[%emt 0:01:26]} Qg1+ {[%emt 0:02:24]} 35. Kh3 {[%emt 0:00:09]} e3 {[%emt 0:02:03]} 36. Rc2 {[%emt 0:02:22]} Qf1+ {[%emt 0:02:36]} 37. Qxf1 {[%emt 0:00:37]} Rxf1 {[%emt 0:00:06]} 38. Nhxf5 {[%emt 0:00:25]} Rf2 {[%emt 0:01:33]} 39. Nxe3 {[%emt 0:00:24]} Rxc2 {[%emt 0:00:08]} 40. Nxc2 {[%emt 0:00:07]} Bxb2 {[%emt 0:01:01]} 41. Nc4 {[%emt 0:32:36]} Bc3 {[%emt 0:30:16]} 42. Kg4 {[%emt 0:03:23]} Re8 {[%emt 0:00:22]} 43. Kf3 {[%emt 0:00:31]} Kf8 {[%emt 0:00:28]} 44. g4 {[%emt 0:01:59]} Ke7 {[%emt 0:00:28]} 45. h4 {[%emt 0:00:30]} Kd7 {[%emt 0:00:33]} 46. g5 {[%emt 0:00:28]} Kc7 {[%emt 0:01:01]} 47. h5 {[%emt 0:00:35]} Rd8 {[%emt 0:00:00]} 48. N2e3 {[%emt 0:00:00]} Bd4 {[%emt 0:00:00]} 49. Ke4 {[%emt 0:00:00]} Bxe3 {[%emt 0:00:00]} 50. Nxe3 {[%emt 0:00:00]} Kd7 {[%emt 0:00:00]} 51. f5 {[%emt 0:00:00]} Re8+ {[%emt 0:00:00]} 52. Kd4 {[%emt 0:00:00]} Ke7 {[%emt 0:00:00]} 53. Ng4 {[%emt 0:00:00]} Rc8 {[%emt 0:00:00]} 54. f6+ {[%emt 0:00:00]} Kf8 {[%emt 0:00:00]} 55. g6 {[%emt 0:00:00]} hxg6 {[%emt 0:00:00]} 56. hxg6 {[%emt 0:00:00]} 1-0